bitfinex-derivatives/quotes_SOLF0:USTF0_20241012
["timestamp","ask_amount","ask_price","bid_price","bid_amount"]
[1728693168648,8.38395914,146.5,146.37,2.7226]
[1728693168649,8.4,146.46,146.4,3.4157]
[1728693168848,8.4,146.45,146.4,16.7357]
[1728693169055,11.8147,146.45,146.4,16.7357]
[1728693169256,8.4,146.45,146.4,16.7357]
[1728693169449,8.4,146.45,146.4,4.92]
[1728693169656,8.4,146.45,146.37,2.7226]
[1728693169657,11.8152,146.43,146.39,0.12502]
[1728693169856,8.4,146.43,146.39,0.12502]
[1728693170360,8.4,146.4,146.39,0.12502]
[1728693171462,11.8158,146.4,146.39,0.12502]
[1728693171664,8.4,146.4,146.35,155.68619446]
[1728693171859,8.4,146.39,146.35,147.28619446]
[1728693172050,11.8162,146.39,146.35,147.28619446]
[1728693172756,3.4163,146.38,146.34,3.4171]
[1728693172959,3.4163,146.38,146.34,11.8171]
[1728693173656,3.416,146.39,146.35,11.8169]
[1728693173863,8.4,146.39,146.35,3.4169]
[1728693174157,8.4,146.39,146.35,11.8169]
[1728693174963,11.816,146.39,146.35,11.8169]
[1728693175163,8.4,146.39,146.33,5.04502]
[1728693175370,4.92,146.43,146.37,8.4]
[1728693175566,3.4156,146.41,146.37,8.4]
[1728693175755,4.92,146.43,146.37,8.4]
[1728693176056,3.4155,146.42,146.37,8.4]
[1728693176561,3.4156,146.41,146.38,3.4162]
[1728693176764,3.4156,146.41,146.37,8.4]
[1728693177159,3.4156,146.41,146.37,11.8164]
[1728693177972,3.4158,146.4,146.37,11.8164]
[1728693179769,8.4,146.42,146.37,8.4]
[1728693179971,16.7352,146.43,146.39,3.416]
[1728693180171,13.32,146.43,146.39,3.416]
[1728693180668,11.8152,146.43,146.39,3.416]
[1728693180859,3.4152,146.43,146.4,8.4]
[1728693181462,3.4152,146.43,146.4,11.8158]
[1728693182068,3.53982,146.45,146.41,11.8154]
[1728693182571,8.52502,146.45,146.39,4.92]
[1728693182866,8.4,146.41,146.37,4.92]
[1728693183168,11.8158,146.4,146.37,8.3364]
[1728693183969,3.4158,146.4,146.37,8.3364]
[1728693184169,3.4156,146.41,146.37,16.7364]
[1728693186772,3.4162,146.38,146.37,4.92]
[1728693186978,8.4,146.4,146.37,4.92]
[1728693187579,3.4161,146.39,146.37,4.92]
[1728693188073,3.4158,146.4,146.37,4.92]
[1728693189176,11.8157,146.41,146.37,4.92]
[1728693189377,8.4,146.41,146.37,4.92]
[1728693190477,8.4,146.41,146.37,8.3365]
[1728693191092,0.12502,146.45,146.4,8.4]
[1728693191383,0.12502,146.45,146.42,8.4]
[1728693191881,0.12502,146.45,146.42,11.8152]
[1728693192580,0.12502,146.45,146.4,4.96]
[1728693192581,0.12502,146.45,146.41,8.4]
[1728693192977,0.12502,146.45,146.42,8.4]
[1728693193775,0.12502,146.45,146.42,11.8151]
[1728693194469,0.12502,146.45,146.43,3.4149]
[1728693194675,0.12502,146.45,146.4,4.96]
[1728693194874,0.12502,146.45,146.42,8.4]
[1728693195089,0.12502,146.45,146.42,11.8152]
[1728693196586,3.53962,146.45,146.42,8.4]
[1728693197080,0.12502,146.45,146.4,4.96]
[1728693197283,8.4,146.44,146.4,4.96]
[1728693197681,11.8152,146.43,146.39,3.4158]
[1728693199476,3.4153,146.42,146.38,19.4069]
[1728693200780,3.4153,146.42,146.38,18.1113]
[1728693201783,3.4157,146.41,146.38,6.2952]
[1728693201993,8.4,146.43,146.38,6.2952]
[1728693202187,0.12502,146.45,146.39,8.4]
[1728693202389,3.4151,146.43,146.4,8.4]
[1728693203585,11.8151,146.43,146.39,11.8159]
[1728693203781,3.4153,146.42,146.39,8.4]
[1728693205491,3.4153,146.42,146.38,9.7112]
[1728693205492,3.4149,146.44,146.4,11.8158]
[1728693205694,8.4,146.43,146.38,6.2952]
[1728693205894,8.4,146.42,146.38,6.2952]
[1728693207093,8.4,146.42,146.39,3.416]
[1728693207488,11.8153,146.43,146.39,3.416]
[1728693207992,8.4,146.43,146.38,14.6952]
[1728693208186,3.4153,146.42,146.38,18.1113]
[1728693208897,3.4149,146.44,146.41,8.4]
[1728693210095,0.12502,146.45,146.42,3.4151]
[1728693214399,11.93982,146.45,146.41,11.8155]
[1728693215195,11.93982,146.45,146.41,3.4155]
[1728693215696,8.52502,146.45,146.41,3.4155]
[1728693215893,3.4149,146.44,146.41,3.4155]
[1728693219195,11.8149,146.44,146.4,11.8157]
[1728693220694,3.4149,146.44,146.4,11.8157]
[1728693220901,0.12502,146.45,146.42,3.4152]
[1728693221395,0.12502,146.45,146.41,8.4]
[1728693222603,3.53972,146.45,146.41,11.8155]
[1728693223701,0.12502,146.45,146.42,11.8151]
[1728693226198,0.12502,146.45,146.39,1.3643]
[1728693226199,0.12502,146.45,146.44,11.8148]
[1728693226606,0.12502,146.45,146.44,3.4148]
[1728693228299,0.12502,146.45,146.43,11.815]
[1728693230511,0.12502,146.45,146.43,8.4]
[1728693230710,0.12502,146.45,146.44,3.4148]
[1728693232812,0.12502,146.45,146.44,11.8148]
[1728693233501,1e-08,146.45,146.44,16.7948]
[1728693243217,1e-08,146.45,146.44,8.3948]
[1728693243519,1e-08,146.45,146.44,16.7948]
[1728693250515,1e-08,146.45,146.39,2.11981999]
[1728693250717,1e-08,146.45,146.4,8.4]
[1728693250718,11.81480001,146.45,146.4,8.4]
[1728693250920,1e-08,146.45,146.41,8.4]
[1728693251220,1e-08,146.45,146.42,3.4151]
[1728693251423,1e-08,146.45,146.39,5.06501999]
[1728693251619,1e-08,146.45,146.4,8.4]
[1728693251922,3.4148,146.44,146.4,11.8157]
[1728693252110,3.4148,146.44,146.4,16.7557]
[1728693252315,8.40000001,146.45,146.4,16.7557]
[1728693252512,11.81470001,146.45,146.41,3.4155]
[1728693252917,8.40000001,146.45,146.4,4.94]
[1728693253118,3.4148,146.44,146.4,8.3557]
[1728693257371,8.40000001,146.45,146.4,13.34]
[1728693257531,11.81480001,146.45,146.41,3.4155]
[1728693259533,8.40000001,146.45,146.4,4.94]
[1728693259737,8.4,146.42,146.39,3.54091999]
[1728693260130,9.8118,146.44,146.39,8.52501999]
[1728693260334,1.4118,146.44,146.4,11.8156]
[1728693260541,1.4118,146.44,146.4,8.4]
[1728693261442,1.4118,146.44,146.41,3.4155]
[1728693262139,1e-08,146.45,146.42,8.4]
[1728693262438,1e-08,146.45,146.44,8.4]
[1728693263946,1e-08,146.45,146.44,11.8148]
[1728693269458,1e-08,146.45,146.44,3.4148]
[1728693282653,1e-08,146.45,146.44,11.8148]
[1728693282859,1e-08,146.45,146.44,16.7348]
[1728693302780,1e-08,146.45,146.44,8.3348]
[1728693303082,1e-08,146.45,146.44,16.7348]
[1728693303481,1e-08,146.45,146.44,8.3348]
[1728693303714,1e-08,146.45,146.44,16.7348]
[1728693318095,1e-08,146.45,146.44,8.3348]
[1728693318499,1e-08,146.45,146.44,16.7348]
[1728693329111,0.12502,146.51,146.48,3.4137]
[1728693329307,0.12502,146.51,146.48,11.8137]
[1728693330309,8.52502,146.51,146.47,8.4]
[1728693330513,11.93822,146.51,146.47,11.814]
[1728693330710,8.52502,146.51,146.46,8.4]
[1728693331517,3.4134,146.5,146.46,11.8142]
[1728693335822,11.8139,146.49,146.44,16.6947]
[1728693336619,11.8139,146.49,146.44,13.28]
[1728693336823,11.8139,146.49,146.45,11.8145]
[1728693338517,3.4139,146.49,146.45,11.8145]
[1728693352627,8.4,146.5,146.45,8.4]
[1728693352828,3.4139,146.48,146.45,8.4]
[1728693353031,3.4139,146.48,146.44,11.8147]
[1728693353429,3.4139,146.48,146.45,3.4146]
[1728693357933,3.4139,146.48,146.44,8.4]
[1728693358135,3.4139,146.48,146.44,11.8147]
[1728693358331,3.4142,146.47,146.44,11.8147]
[1728693358931,3.4142,146.47,146.43,8.295]
[1728693358932,11.8142,146.47,146.43,8.295]
[1728693361236,8.4,146.45,146.39,1.42732]
[1728693361433,8.4,146.45,146.39,14.70732]
[1728693362234,3.4148,146.44,146.4,3.4156]
[1728693364734,11.8151,146.43,146.39,3.54092]
[1728693368445,8.4,146.42,146.39,3.54092]
[1728693371647,8.4,146.42,146.39,0.12502]
[1728693371946,11.8155,146.42,146.39,0.12502]
[1728693372348,11.8151,146.43,146.39,11.94092]
[1728693377847,3.4149,146.44,146.4,11.8156]
[1728693378050,13.28,146.45,146.4,8.4]
[1728693378473,16.6948,146.45,146.41,3.4154]
[1728693379061,3.4148,146.44,146.41,3.4154]
[1728693379756,13.28,146.45,146.4,8.4]
[1728693379957,16.6947,146.45,146.42,3.4153]
[1728693381953,3.4142,146.47,146.44,3.4147]
[1728693382851,13.28,146.48,146.45,3.4144]
[1728693383960,16.6939,146.48,146.45,3.4144]
[1728693385457,8.4,146.47,146.45,3.4144]
[1728693387359,16.6939,146.48,146.45,3.4144]
[1728693388458,13.28,146.48,146.43,8.4]
[1728693388762,13.28,146.48,146.45,3.4144]
[1728693389470,8.4,146.48,146.45,3.4144]
[1728693389762,8.4,146.48,146.43,13.28]
[1728693389951,8.4,146.44,146.39,5.00502]
[1728693390158,11.815,146.44,146.39,0.12502]
[1728693390463,11.815,146.44,146.39,5.00502]
[1728693391359,11.815,146.44,146.4,3.4157]
[1728693397070,8.4,146.42,146.39,8.42092]
[1728693397564,8.4,146.4,146.39,0.12502]
[1728693399163,11.8158,146.4,146.39,0.12502]
[1728693399561,11.8158,146.4,146.34,6.267]
[1728693399562,8.4,146.4,146.34,6.267]
[1728693399761,8.4,146.37,146.34,9.6841]
[1728693400157,8.4,146.36,146.33,0.12502]
[1728693400368,8.4,146.36,146.33,8.42242]
[1728693400769,8.4,146.36,146.33,3.54242]
[1728693403869,8.4,146.36,146.33,0.12502]
[1728693404775,4.88,146.41,146.33,0.12502]
[1728693404776,8.4,146.35,146.33,0.12502]
[1728693408588,3.4172,146.34,146.33,0.12502]
[1728693408874,8.4,146.34,146.27,0.12502]
[1728693409064,4.88,146.35,146.27,0.12502]
[1728693409065,8.4,146.32,146.27,13.40502]
[1728693409268,8.4,146.32,146.28,155.61503824]
[1728693409975,11.8175,146.33,146.29,3.4183]
[1728693410472,11.8172,146.34,146.3,3.418]
[1728693410872,8.4,146.34,146.3,3.418]
[1728693412476,3.4171,146.35,146.31,3.4177]
[1728693412676,8.4,146.34,146.31,3.4177]
[1728693415281,11.8173,146.34,146.3,3.4179]
[1728693415982,11.8174,146.33,146.3,3.4179]
[1728693417976,11.8174,146.33,146.29,3.4182]
[1728693419573,8.4,146.33,146.29,3.4182]
[1728693419883,3.4176,146.32,146.29,3.4182]
[1728693421588,3.4175,146.33,146.29,11.8182]
[1728693422177,3.4175,146.33,146.29,3.4182]
[1728693422386,3.4175,146.33,146.29,11.8182]
[1728693423384,3.4175,146.33,146.29,3.4182]
[1728693425583,8.4,146.32,146.29,3.4182]
[1728693427989,8.4,146.33,146.3,3.4179]
[1728693429897,9.7933,146.35,146.32,3.4176]
[1728693430092,9.7933,146.35,146.3,8.4]
[1728693430389,13.2104,146.35,146.31,3.4178]
[1728693430982,1.3933,146.35,146.3,8.4]
[1728693431184,9.7933,146.35,146.32,3.4176]
[1728693431584,8.4,146.35,146.32,3.4176]
[1728693432685,8.4,146.35,146.3,8.4]
[1728693432991,8.4,146.36,146.31,8.4]
[1728693433182,8.4,146.36,146.31,13.28]
[1728693433877,8.4,146.36,146.34,3.4171]
[1728693434480,8.4,146.36,146.31,13.28]
[1728693434688,8.4,146.35,146.31,13.28]
[1728693434986,8.4,146.35,146.32,3.4176]
[1728693438082,8.4,146.35,146.31,13.28]
[1728693438394,11.8169,146.35,146.31,8.2978]
[1728693443096,4.88,146.37,146.3,3.418]
[1728693443097,11.8173,146.34,146.3,3.418]
[1728693443281,8.4,146.34,146.29,8.4]
[1728693444293,3.4174,146.33,146.29,11.8181]
[1728693445998,3.4174,146.33,146.3,3.4181]
[1728693446197,8.4,146.31,146.28,1.4028]
[1728693446432,8.4,146.31,146.27,5.00502]
[1728693446433,8.4,146.3,146.27,5.00502]
[1728693447399,8.4,146.3,146.27,0.12502]
[1728693448299,8.4,146.28,146.27,0.12502]
[1728693448494,8.4,146.3,146.27,0.12502]
[1728693448896,11.8182,146.3,146.27,0.12502]
[1728693449901,8.4,146.3,146.27,0.12502]
[1728693450100,3.4184,146.29,146.27,0.12502]
[1728693450393,2.624,146.33,146.27,0.12502]
[1728693450394,8.4,146.28,146.27,0.12502]
[1728693450603,11.8186,146.28,146.27,0.12502]
[1728693451802,3.4189,146.27,146.23,8.2997]
[1728693452097,8.4,146.26,146.23,8.2997]
[1728693452297,8.4,146.26,146.23,4.88]
[1728693452505,8.4,146.26,146.22,3.4199]
[1728693452506,11.8191,146.26,146.22,3.4199]
[1728693452802,8.4,146.23,146.21,0.12502]
[1728693455406,8.4,146.22,146.21,0.12502]
[1728693457406,8.4,146.24,146.21,0.12502]
[1728693458933,8.4,146.24,146.21,3.54522]
[1728693459607,13.1167,146.25,146.21,3.54522]
[1728693461811,9.6974,146.25,146.21,3.54522]
[1728693463713,3.4188,146.28,146.24,3.4195]
[1728693464010,8.4,146.28,146.23,8.4]
[1728693464802,8.4,146.28,146.25,3.4191]
[1728693466818,8.4,146.27,146.25,3.4191]
[1728693470217,8.4,146.27,146.24,3.4194]
[1728693470418,8.4,146.26,146.22,1.3607]
[1728693471417,8.4,146.26,146.23,3.4197]
[1728693472522,8.4,146.25,146.23,3.4197]
[1728693472713,8.4,146.25,146.22,4.7806]
[1728693474221,8.4,146.25,146.22,3.4199]
[1728693477629,3.4189,146.27,146.23,3.4197]
[1728693477827,8.4,146.25,146.23,3.4197]
[1728693483542,8.4,146.25,146.22,3.4199]
[1728693483743,8.4,146.24,146.22,3.4199]
[1728693486251,8.4,146.25,146.22,3.4199]
[1728693486745,8.4,146.23,146.21,0.12502]
[1728693486955,8.4,146.22,146.21,0.12502]
[1728693489236,8.4,146.23,146.21,0.12502]
[1728693495849,25.32656681,146.42,146.22,8.4]
[1728693496048,11.8183,146.29,146.25,3.4193]
[1728693497436,11.8183,146.29,146.26,3.419]
[1728693497638,11.8183,146.29,146.24,8.4]
[1728693498239,3.4186,146.28,146.25,3.4192]
[1728693498443,8.4,146.27,146.25,3.4192]
[1728693499649,8.4,146.27,146.24,3.4194]
[1728693501844,8.4,146.26,146.24,3.4194]
[1728693506553,8.4,146.25,146.22,3.4199]
[1728693506753,8.4,146.25,146.21,5.00502]
[1728693508557,8.4,146.25,146.22,3.4199]
[1728693511955,8.4,146.25,146.21,0.12502]
[1728693512164,11.8193,146.25,146.21,3.54522]
[1728693515452,8.4,146.24,146.21,3.54522]
[1728693515848,8.4,146.24,146.21,0.12502]
[1728693516051,11.8196,146.24,146.21,0.12502]
[1728693518365,8.4,146.24,146.21,0.12502]
[1728693518562,9.7157,146.25,146.21,0.12502]
[1728693519364,1.3449,146.27,146.22,8.4]
[1728693519365,8.4,146.27,146.22,8.4]
[1728693519870,8.4,146.27,146.23,3.4195]
[1728693520060,8.4,146.27,146.22,8.4]
[1728693520366,8.4,146.27,146.24,3.4195]
[1728693521259,11.8188,146.27,146.24,3.4195]
[1728693522068,8.4,146.26,146.24,3.4195]
[1728693524574,3.4188,146.27,146.24,3.4195]
[1728693524872,11.8188,146.27,146.24,3.4195]
[1728693528568,8.4,146.27,146.21,8.52502]
[1728693528774,3.4193,146.25,146.22,3.4199]
[1728693529077,8.4,146.24,146.21,0.12502]
[1728693529973,8.4,146.24,146.21,3.54512]
[1728693540177,1.4013,146.25,146.21,0.12502]
[1728693540411,3.4189,146.27,146.23,3.4197]
[1728693541083,3.4189,146.27,146.24,3.4195]
[1728693543379,84.07725097,146.34,146.24,3.4195]
[1728693543380,4.88,146.29,146.27,0.12502]
[1728693543581,8.4,146.28,146.27,0.12502]
[1728693544488,11.8186,146.28,146.27,0.12502]
[1728693547984,331.55482397,146.34,146.27,0.12502]
[1728693547985,4.88,146.3,146.27,0.12502]
[1728693548185,8.4,146.29,146.27,0.12502]
[1728693549475,11.8184,146.29,146.27,0.12502]
[1728693549683,8.4,146.28,146.27,0.12502]
[1728693550480,11.8186,146.28,146.27,0.12502]
[1728693560883,3.4186,146.28,146.27,0.12502]
[1728693561201,4.88,146.3,146.27,0.12502]
[1728693561394,4.88,146.31,146.27,0.12502]
[1728693561583,4.88,146.31,146.28,3.4185]
[1728693561785,3.4181,146.3,146.27,0.12502]
[1728693563387,3.4181,146.3,146.27,3.54382]
[1728693565693,13.28,146.32,146.27,0.12502]
[1728693565888,3.4179,146.31,146.28,3.4185]
[1728693566194,4.88,146.34,146.29,8.4]
[1728693566491,86.58498066,146.35,146.31,8.4]
[1728693566688,78.18498066,146.35,146.31,8.4]
[1728693566989,86.58498066,146.35,146.3,60.0]
[1728693567194,86.58498066,146.35,146.3,68.4]
[1728693567892,3.4173,146.34,146.31,3.4177]
[1728693568982,90.00198066,146.35,146.31,3.4177]
[1728693569489,85.12208066,146.35,146.3,68.4]
[1728693570288,8.4,146.34,146.3,60.0]
[1728693570486,3.4174,146.33,146.3,63.418]
[1728693576491,3.4174,146.33,146.3,71.818]
[1728693580403,11.8178,146.32,146.3,60.0]
[1728693580994,8.4,146.31,146.3,60.0]
[1728693581292,16.6979,146.31,146.3,60.0]
[1728693585497,16.6979,146.31,146.3,57.73278001]
[1728693590004,8.2979,146.31,146.3,57.73278001]
[1728693590237,16.6979,146.31,146.3,57.73278001]
[1728693594306,3.4176,146.33,146.3,57.73278001]
[1728693594506,8.4,146.32,146.3,57.73278001]
[1728693595308,4.88,146.33,146.3,57.73278001]
[1728693595506,8.4,146.31,146.3,57.73278001]
[1728693596415,11.8179,146.31,146.3,57.73278001]
[1728693597607,3.4179,146.31,146.3,57.73278001]
[1728693597802,3.4177,146.32,146.3,57.73278001]
[1728693598008,8.4,146.31,146.3,57.73278001]
[1728693598914,11.8179,146.31,146.3,57.73278001]
[1728693602301,8.4,146.31,146.3,57.73278001]
[1728693603105,11.8179,146.31,146.3,57.73278001]
[1728693603310,8.4,146.31,146.3,57.73278001]
[1728693608013,8.4,146.31,146.3,61.15088001]
[1728693608222,8.297,146.35,146.3,57.73278001]
[1728693608415,16.697,146.35,146.3,57.73278001]
[1728693608824,4.88,146.36,146.35,41.03578001]
[1728693609011,13.28,146.36,146.35,41.03578001]
[1728693609213,16.6968,146.36,146.35,41.03578001]
[1728693609612,16.77799897,146.36,146.29,1.3564]
[1728693609810,8.4,146.32,146.29,4.7747]
[1728693610219,8.4,146.32,146.29,1.3564]
[1728693610415,8.4,146.3,146.29,1.3564]
[1728693610921,8.4,146.3,146.29,4.7747]
[1728693611152,8.4,146.3,146.29,1.3564]
[1728693611711,8.4,146.3,146.27,1.44242]
[1728693612018,4.88,146.33,146.27,1.44242]
[1728693612019,8.4,146.29,146.27,1.44242]
[1728693614222,3.4182,146.3,146.27,1.44242]
[1728693614223,11.8182,146.3,146.27,1.44242]
[1728693614526,11.8182,146.3,146.27,4.86122]
[1728693617122,11.8182,146.3,146.27,1.44242]
[1728693617322,3.4184,146.29,146.27,1.44242]
[1728693617709,8.4,146.3,146.27,1.44242]
[1728693617920,11.8182,146.3,146.27,1.44242]
[1728693618121,11.8182,146.3,146.27,4.86112]
[1728693619117,11.8182,146.3,146.27,1.44242]
[1728693623635,3.4186,146.28,146.27,0.12502]
[1728693623834,15.26167931,146.28,146.27,0.12502]
[1728693645548,11.84307931,146.28,146.22,1.308]
[1728693645755,8.4,146.24,146.22,4.7278]
[1728693647058,8.4,146.24,146.22,3.4198]
[1728693648861,8.4,146.24,146.21,0.12502]
[1728693649061,8.4,146.24,146.21,3.54522]
[1728693649062,11.8195,146.24,146.21,3.54522]
[1728693650459,8.4,146.24,146.21,3.54522]
[1728693651488,11.8194,146.25,146.21,8.52502]
[1728693651769,11.8194,146.25,146.22,3.4198]
[1728693668177,3.45325873,146.27,146.21,0.12502]
[1728693668178,2.2054,146.32,146.25,3.4193]
[1728693668384,8.4,146.29,146.24,8.4]
[1728693669380,8.4,146.29,146.26,3.419]
[1728693669979,8.4,146.29,146.24,8.4]
[1728693669980,13.28,146.3,146.25,8.4]
[1728693670284,8.4,146.31,146.28,3.4185]
[1728693671884,8.4,146.32,146.27,9.8089]
[1728693673391,81.63997773,146.33,146.29,8.4]
[1728693673683,81.63997773,146.33,146.28,2.7118]
[1728693673886,73.23997773,146.33,146.31,3.4177]
[1728693681890,85.05737773,146.33,146.3,3.4181]
[1728693684190,76.65737773,146.33,146.3,11.8181]
[1728693684391,73.23997773,146.33,146.3,11.8181]
[1728693686993,8.4,146.31,146.28,1.3332]
[1728693687187,8.4,146.31,146.27,4.8277]
[1728693688185,3.4182,146.3,146.27,4.8277]
[1728693689194,11.8179,146.31,146.27,4.8277]
[1728693690191,8.4,146.31,146.27,4.8277]
[1728693690397,3.4181,146.3,146.27,4.8277]
[1728693694893,3.4181,146.3,146.26,4.88]
[1728693694894,3.4186,146.28,146.26,4.88]
[1728693695494,11.8188,146.27,146.26,4.88]
[1728693698502,11.8188,146.27,146.23,3.4197]
[1728693699010,8.4,146.29,146.26,3.4189]
[1728693699802,11.8184,146.29,146.25,11.8192]
[1728693702092,3.418,146.31,146.26,8.4]
[1728693702289,8.4,146.31,146.26,8.4]
[1728693703504,3.4181,146.3,146.27,3.4188]
[1728693704903,11.8179,146.31,146.27,3.4188]
[1728693705802,3.4181,146.3,146.27,3.4188]
[1728693706205,11.8181,146.3,146.27,3.4188]
[1728693707615,8.4,146.3,146.26,8.4]
[1728693707810,8.4,146.31,146.26,8.4]
[1728693708315,8.4,146.31,146.23,2.7712]
[1728693708517,8.4,146.31,146.27,8.4]
[1728693709409,77.97297773,146.33,146.28,8.4]
[1728693709606,81.63997773,146.33,146.28,8.4]
[1728693710411,81.63997773,146.33,146.3,3.4181]
[1728693717816,73.23997773,146.33,146.31,3.4178]
[1728693719515,76.65747773,146.33,146.28,1.3842]
[1728693719714,73.23997773,146.33,146.29,8.4]
[1728693720211,11.8178,146.32,146.29,3.4183]
[1728693720418,8.4,146.32,146.27,8.4]
[1728693721419,3.418,146.31,146.28,3.4185]
[1728693723918,3.418,146.31,146.28,11.8185]
[1728693724114,11.8177,146.32,146.29,3.4183]
[1728693724317,3.4177,146.32,146.29,3.4183]
[1728693725520,8.52502,146.33,146.26,4.88]
[1728693725813,8.4,146.31,146.26,13.28]
[1728693726823,8.4,146.32,146.28,8.4]
[1728693727927,0.12502,146.33,146.29,8.4]
[1728693728416,0.12502,146.33,146.3,8.4]
[1728693728613,0.12502,146.33,146.31,3.4177]
[1728693729917,0.12502,146.33,146.32,3.4176]
[1728693730717,0.12502,146.33,146.32,11.8176]
[1728693731125,4.86,146.38,146.35,8.4]
[1728693732429,4.86,146.38,146.35,11.8169]
[1728693733328,4.86,146.38,146.35,8.4]
[1728693734426,4.86,146.38,146.35,11.8169]
[1728693735239,3.4165,146.37,146.33,3.4173]
[1728693740433,3.4165,146.37,146.34,3.4171]
[1728693743634,3.4165,146.37,146.34,11.8171]
[1728693743828,8.4,146.38,146.35,3.4169]
[1728693743829,3.4164,146.38,146.35,3.4169]
[1728693744729,3.59153203,146.39,146.35,3.4169]
[1728693744937,8.52502,146.39,146.35,8.4]
[1728693745233,8.52502,146.39,146.36,3.4165]
[1728693747328,11.94102,146.39,146.36,3.4165]
[1728693752827,0.12502,146.39,146.35,8.4]
[1728693753031,0.12502,146.39,146.37,3.4164]
[1728693753933,0.12502,146.39,146.35,8.4]
[1728693754138,0.12502,146.39,146.36,3.4166]
[1728693754531,8.52502,146.39,146.36,3.4166]
[1728693758354,8.52502,146.39,146.35,3.4168]
[1728693759545,3.4162,146.38,146.35,3.4168]
[1728693760149,0.12502,146.39,146.34,8.4]
[1728693760454,0.12502,146.39,146.36,8.4]
[1728693761146,0.12502,146.39,146.36,11.8165]
[1728693761346,0.12502,146.39,146.36,8.4]
[1728693762446,0.12502,146.39,146.37,3.4165]
[1728693766546,0.12502,146.39,146.38,11.8162]
[1728693770255,3.4149,146.44,146.38,16.6762]
[1728693770446,0.12502,146.45,146.42,11.8152]
[1728693770649,0.12502,146.45,146.42,8.4]
[1728693771049,0.12502,146.45,146.43,11.8149]
[1728693772153,0.12502,146.45,146.43,3.4149]
[1728693779062,0.12502,146.45,146.42,3.4152]
[1728693780558,8.52502,146.45,146.4,8.4]
[1728693780858,8.4,146.44,146.4,3.4157]
[1728693781253,0.12502,146.45,146.42,8.4]
[1728693782259,0.12502,146.45,146.42,3.4152]
[1728693783365,3.53962,146.45,146.42,3.4152]
[1728693783763,0.12502,146.45,146.42,3.4152]
[1728693784667,0.12502,146.45,146.41,8.4]
[1728693784970,11.815,146.44,146.4,3.4157]
[1728693786462,8.4,146.43,146.39,1.2906]
[1728693786660,8.4,146.43,146.36,1.3455]
[1728693786661,8.4,146.43,146.38,4.86]
[1728693787368,3.4156,146.41,146.38,8.2761]
[1728693789568,8.4,146.42,146.37,8.4]
[1728693789874,3.4159,146.4,146.37,3.4164]
[1728693790961,3.4159,146.4,146.37,11.8164]
[1728693791966,11.8159,146.4,146.37,3.4164]
[1728693792169,8.4,146.41,146.36,9.7455]
[1728693792363,8.4,146.41,146.38,3.4161]
[1728693792968,11.8157,146.41,146.38,3.4161]
[1728693793167,0.12502,146.45,146.39,8.4]
[1728693793367,13.26,146.44,146.39,11.8158]
[1728693793570,13.26,146.44,146.39,8.4]